bitfinex-derivatives/quotes_ETHF0:USTF0_20251226
["timestamp","ask_amount","ask_price","bid_price","bid_amount"]
[1766733263392,0.94738865,2985.3,2983.4,5.032]
[1766733263588,0.94738865,2985.2,2983.4,5.032]
[1766733263791,0.94738865,2985.1,2983.4,5.032]
[1766733263986,0.95244886,2985.4,2983.4,5.032]
[1766733264181,0.78481886,2985.0,2983.3,1.61785128]
[1766733264790,0.16763,2985.3,2983.3,1.61785128]
[1766733264991,0.94740398,2985.2,2983.3,1.61785128]
[1766733265291,0.94740398,2985.1,2983.3,1.61785128]
[1766733265493,0.16763,2985.3,2983.3,1.61785128]
[1766733265689,0.94740874,2985.2,2983.3,1.61785128]
[1766733265887,0.94740874,2985.1,2983.3,1.61785128]
[1766733266189,0.16763,2985.3,2983.3,1.61785128]
[1766733266390,0.94741508,2985.2,2983.3,1.61785128]
[1766733266589,0.94741508,2985.1,2983.3,1.61785128]
[1766733266897,0.16763,2985.3,2983.3,1.61785128]
[1766733267196,0.94740165,2985.2,2983.3,1.61785128]
[1766733267388,0.94740165,2985.1,2983.3,1.61785128]
[1766733267692,0.16763,2985.3,2983.3,1.61785128]
[1766733267994,0.94741139,2985.2,2983.3,1.61785128]
[1766733268197,0.94741139,2985.1,2983.3,1.61785128]
[1766733268395,0.16763,2985.3,2983.3,1.61785128]
[1766733268594,0.9466867,2985.2,2983.3,1.61785128]
[1766733268897,0.16763,2985.3,2983.3,1.61785128]
[1766733269192,0.94668307,2985.2,2983.3,1.61785128]
[1766733269390,0.16763,2985.3,2983.3,1.61785128]
[1766733269590,0.9467291,2985.2,2983.3,1.61785128]
[1766733269792,0.9467483,2985.1,2983.3,1.61785128]
[1766733269995,0.16763,2985.3,2983.3,1.61785128]
[1766733270195,0.94675785,2985.2,2983.3,1.61785128]
[1766733270392,0.94675785,2985.1,2983.3,1.61785128]
[1766733270593,0.16763,2985.3,2983.3,1.61785128]
[1766733270793,0.94675941,2985.2,2983.3,1.61785128]
[1766733270993,0.94675941,2985.1,2983.3,1.61785128]
[1766733271195,0.78481886,2985.1,2983.4,5.029]
[1766733271396,0.94677509,2985.0,2983.3,1.61785128]
[1766733271590,0.94677509,2984.9,2983.3,1.61785128]
[1766733271897,0.95245886,2985.1,2983.3,1.61785128]
[1766733272094,0.94679179,2985.0,2983.3,1.61785128]
[1766733272297,0.94679179,2984.9,2983.3,1.61785128]
[1766733272599,0.95245886,2985.1,2983.3,1.61785128]
[1766733272799,0.94675725,2985.0,2983.3,1.61785128]
[1766733272993,0.94675725,2984.9,2983.3,1.61785128]
[1766733273187,0.95245886,2985.1,2983.3,1.61785128]
[1766733273392,0.94671781,2985.0,2983.3,1.61785128]
[1766733273595,0.94671781,2984.9,2983.3,1.61785128]
[1766733273798,0.95245886,2985.1,2983.3,1.61785128]
[1766733274001,0.94671715,2985.0,2983.3,1.61785128]
[1766733274197,0.94671715,2984.9,2983.3,1.61785128]
[1766733274394,0.95245886,2985.1,2983.3,1.61785128]
[1766733274599,0.94666961,2985.0,2983.3,1.61785128]
[1766733274796,0.94666961,2984.9,2983.3,1.61785128]
[1766733274992,0.95245886,2985.1,2983.3,1.61785128]
[1766733275192,0.94667033,2985.0,2983.3,1.61785128]
[1766733275396,0.94667033,2984.9,2983.3,1.61785128]
[1766733275593,0.95245886,2985.1,2983.3,1.61785128]
[1766733275900,0.94662182,2985.0,2983.3,1.61785128]
[1766733276100,0.94662182,2984.9,2983.3,1.61785128]
[1766733276294,0.95245886,2985.1,2983.3,1.61785128]
[1766733276494,0.94658997,2985.0,2983.3,1.61785128]
[1766733276689,0.94658997,2984.9,2983.3,1.61785128]
[1766733276902,0.95245886,2985.1,2983.3,1.61785128]
[1766733277096,0.94658725,2985.0,2983.3,1.61785128]
[1766733277296,0.94658725,2984.9,2983.3,1.61785128]
[1766733277596,0.95245886,2985.1,2983.3,1.61785128]
[1766733277905,0.94659582,2985.0,2983.4,5.027]
[1766733278099,0.94659582,2984.9,2983.4,5.027]
[1766733278297,0.95245886,2985.1,2983.4,5.027]
[1766733278496,0.94661285,2985.0,2983.4,5.027]
[1766733278700,0.94661285,2984.9,2983.4,5.027]
[1766733278906,0.95245886,2985.1,2983.4,5.027]
[1766733279202,0.94661284,2985.0,2983.4,5.027]
[1766733279403,0.16764,2985.1,2983.4,5.027]
[1766733279702,0.94668906,2985.0,2983.4,5.027]
[1766733279902,0.16764,2985.1,2983.5,5.026]
[1766733280101,0.94668549,2985.0,2983.5,5.026]
[1766733280405,0.95245886,2985.1,2983.3,6.64385128]
[1766733280600,0.94682418,2985.0,2983.3,6.64385128]
[1766733280800,0.95245886,2985.1,2983.3,6.64385128]
[1766733281001,0.94682422,2985.0,2983.3,6.64385128]
[1766733281202,0.16764,2985.1,2983.3,1.61785128]
[1766733281404,0.94693724,2985.0,2983.3,1.61785128]
[1766733281603,0.94694008,2984.9,2983.3,1.61785128]
[1766733281804,0.16764,2985.1,2983.3,1.61785128]
[1766733282002,0.94693979,2985.0,2983.3,1.61785128]
[1766733282202,0.94707157,2984.9,2983.3,1.61785128]
[1766733282506,0.16764,2985.1,2983.3,1.61785128]
[1766733282704,0.94707116,2985.0,2983.3,1.61785128]
[1766733283007,0.94707116,2984.9,2983.3,1.61785128]
[1766733283206,0.16764,2985.1,2983.3,1.61785128]
[1766733283506,0.94724479,2985.0,2983.3,1.61785128]
[1766733283708,0.94724479,2984.9,2983.3,1.61785128]
[1766733283904,7.58194629,2985.6,2983.4,0.16774]
[1766733284107,0.947177,2985.5,2983.4,0.16774]
[1766733284310,0.947177,2985.4,2983.4,0.16774]
[1766733284508,0.947177,2985.3,2983.4,0.16774]
[1766733284706,7.58194629,2985.6,2983.4,0.16774]
[1766733284909,1.11470199,2985.5,2983.4,0.16774]
[1766733285103,0.94708199,2985.4,2983.4,0.16774]
[1766733289919,0.78481005,2984.9,2983.4,0.95255005]
[1766733291720,0.16763,2985.4,2983.4,0.95255005]
[1766733291913,0.78481005,2985.1,2983.4,0.95255005]
[1766733292316,0.78481005,2985.1,2983.4,0.16774]
[1766733292516,0.78481005,2985.1,2983.4,5.97455005]
[1766733292717,0.78481005,2984.8,2983.4,5.97455005]
[1766733293018,0.78481005,2984.8,2983.4,0.16774]
[1766733295521,0.16764,2985.2,2983.4,0.16774]
[1766733295820,0.78481005,2984.9,2983.4,0.95255005]
[1766733299717,6.62050743,2985.6,2983.4,0.78481005]
[1766733299920,0.94713298,2985.5,2984.0,0.78481005]
[1766733300222,0.00250743,2985.6,2984.3,0.78481005]
[1766733300516,0.78481005,2985.2,2983.8,4.314]
[1766733300820,0.78481005,2985.2,2983.9,5.022]
[1766733301020,0.78481005,2985.5,2984.0,0.78481005]
[1766733302220,0.78481005,2985.2,2984.0,0.78481005]
[1766733303822,0.00250743,2985.6,2984.0,0.78481005]
[1766733304028,0.78481005,2985.3,2984.0,0.78481005]
[1766733305015,0.78481005,2985.3,2983.8,5.97253005]
[1766733305726,0.78481005,2985.3,2983.8,0.95253005]
[1766733305921,0.78481005,2985.3,2983.8,5.97153005]
[1766733308821,0.78481005,2985.3,2983.8,0.95253005]
[1766733309021,0.78481005,2985.3,2983.8,5.97053005]
[1766733309419,0.00250743,2985.6,2984.1,0.78481005]
[1766733309619,0.78481005,2985.5,2984.1,0.78481005]
[1766733309821,0.00250743,2985.6,2984.1,0.78481005]
[1766733310022,0.78481005,2985.5,2984.1,0.78481005]
[1766733310327,0.00250743,2985.6,2984.1,0.78481005]
[1766733312125,0.00250743,2985.6,2984.7,0.78481005]
[1766733312325,0.00250743,2985.6,2984.9,0.00502562]
[1766733312527,0.00250743,2985.6,2984.9,0.0081868]
[1766733314428,0.78481005,2986.0,2984.9,0.0081868]
[1766733315024,0.16758,2986.3,2984.9,0.0081868]
[1766733315231,0.17075857,2986.3,2985.0,0.78481005]
[1766733315929,0.00317857,2986.3,2985.6,0.78481005]
[1766733316133,0.16754,2987.0,2985.3,4.487]
[1766733316324,0.16754,2987.0,2984.9,0.0081868]
[1766733316325,0.78481005,2986.3,2984.9,0.0081868]
[1766733317225,0.00396454,2986.3,2985.0,0.78481005]
[1766733318521,0.00396454,2986.3,2984.9,0.0081868]
[1766733318722,0.78481005,2985.7,2984.9,0.0081868]
[1766733318931,0.78481005,2985.3,2984.0,0.78481005]
[1766733319223,0.78481005,2985.3,2983.8,1.47537484]
[1766733319224,0.78481005,2985.4,2983.8,0.78481005]
[1766733319631,0.16762,2985.6,2984.2,0.78481005]
[1766733319932,0.00502561,2985.2,2984.6,0.00502562]
[1766733322728,0.17154454,2986.3,2985.1,0.78481005]
[1766733322927,0.78481005,2986.2,2984.8,0.78481005]
[1766733323128,0.78481005,2986.2,2984.6,0.00502562]
[1766733324332,0.00396454,2986.3,2984.8,0.78481005]
[1766733324533,0.00396454,2986.3,2985.1,0.78481005]
[1766733331030,0.00396454,2986.3,2984.6,0.00502562]
[1766733331230,0.78481005,2986.2,2984.6,0.00502562]
[1766733331436,0.78481005,2985.9,2984.6,0.00502562]
[1766733331633,0.78481005,2985.6,2984.6,0.00502562]
[1766733333539,0.78481005,2985.3,2984.2,0.00320767]
[1766733334536,0.78481005,2984.6,2983.0,0.78481005]
[1766733334732,0.78481005,2984.7,2983.5,0.00502562]
[1766733335241,0.78983567,2985.0,2983.5,0.00502562]
[1766733335642,0.78983567,2985.0,2983.5,0.00896482]
[1766733338552,0.00502562,2985.0,2983.6,0.78481005]
[1766733338849,0.78983567,2985.0,2983.6,0.78481005]
[1766733339044,0.00502562,2985.0,2983.9,0.78481005]
[1766733340150,0.78983567,2985.0,2983.5,0.79377487]
[1766733341242,0.00502562,2985.0,2983.5,0.79377487]
[1766733344361,0.00502562,2985.0,2983.7,0.78481005]
[1766733345352,0.00502562,2985.0,2983.5,0.00896482]
[1766733345552,0.00502562,2985.0,2983.5,0.79377487]
[1766733346956,0.78481005,2984.9,2983.5,0.00896482]
[1766733347755,0.78481005,2984.6,2983.5,0.00896482]
[1766733348254,0.78481005,2984.7,2983.5,0.00896482]
[1766733351060,0.78481005,2984.1,2983.5,0.00896482]
[1766733351361,0.78481005,2983.8,2982.3,2.22233003]
[1766733351954,0.95309005,2984.3,2982.3,1.43751998]
[1766733352149,0.00502562,2983.6,2983.0,0.00502562]
[1766733353555,0.00502562,2983.6,2982.3,1.44081868]
[1766733353752,0.00502562,2983.6,2982.3,0.0032987]
[1766733354561,0.00502562,2983.6,2982.7,0.00502562]
[1766733358561,0.16774,2983.4,2982.3,0.0032987]
[1766733358969,0.78540005,2983.1,2981.1,0.16787]
[1766733359472,0.00502562,2983.6,2981.8,0.00502562]
[1766733359668,0.00502562,2983.6,2981.8,0.79042567]
[1766733360059,0.00502562,2983.6,2981.8,0.79375736]
[1766733360368,0.00502562,2983.6,2981.8,0.00835731]
[1766733362466,0.17275562,2983.6,2981.8,0.00835731]
[1766733363761,0.78540005,2983.4,2981.8,0.00835731]
[1766733363965,0.16775,2983.3,2981.8,0.00835731]
[1766733367564,0.50502562,2983.6,2982.0,0.78540005]
[1766733369974,0.50502562,2983.6,2981.8,0.17618731]
[1766733370573,0.50502562,2983.6,2981.9,0.16782]
[1766733370774,0.50502562,2983.6,2982.1,0.16781]
[1766733378974,0.00297741,2984.3,2982.4,1.44953257]
[1766733379172,0.00297741,2984.3,2982.5,0.16779]
[1766733380073,0.00502562,2983.7,2982.5,0.16779]
[1766733386674,0.00502562,2983.7,2982.2,6.376]
[1766733387072,0.00502562,2983.7,2982.2,6.54381]
[1766733387274,0.00502562,2983.7,2982.3,0.1678]
[1766733390077,0.00502562,2983.7,2982.4,0.78517515]
[1766733393992,0.00502562,2983.7,2982.4,0.95297515]
[1766733398990,0.00502562,2983.7,2982.4,5.1668]
[1766733399495,0.00502562,2983.7,2982.4,0.1678]
[1766733406495,0.00297741,2984.3,2982.6,0.95295515]
[1766733407503,0.00502562,2983.7,2982.6,0.95295515]
[1766733408211,2.562e-05,2983.7,2982.6,0.95295515]
[1766733408812,0.00297741,2984.3,2982.7,0.16778]
[1766733409013,0.00297741,2984.3,2982.9,0.78517515]
[1766733409817,0.00502562,2983.9,2983.3,0.00502562]
[1766733418515,0.00502562,2983.9,2983.5,0.78500835]
[1766733418819,0.00297741,2984.3,2983.5,0.78500835]
[1766733420216,0.00297741,2984.3,2983.3,0.00502562]
[1766733421010,0.16763,2985.4,2983.8,0.78500835]
[1766733421210,0.16763,2985.4,2984.1,0.78500835]
[1766733421211,0.94227527,2985.3,2984.1,0.78500835]
[1766733421412,0.94227527,2985.2,2984.1,0.78500835]
[1766733421615,0.94227527,2985.1,2984.1,0.78500835]
[1766733421813,0.16763,2985.4,2984.1,0.78500835]
[1766733422018,0.94215013,2985.3,2984.1,0.78892936]
[1766733422218,0.17142621,2985.4,2984.1,0.78892936]
[1766733423715,0.00379621,2985.4,2984.1,0.00392101]
[1766733424115,0.00379621,2985.4,2984.1,0.78892936]
[1766733424419,0.00379621,2985.4,2984.4,0.78500835]
[1766733426824,0.00379621,2985.4,2984.1,0.00392101]
[1766733426825,0.00379621,2985.4,2984.2,0.78500835]
[1766733432528,0.00379621,2985.4,2984.5,0.78500835]
[1766733433032,0.00379621,2985.4,2984.2,0.78500835]
[1766733440130,0.00379621,2985.4,2984.5,0.78500835]
[1766733440336,0.00379621,2985.4,2984.8,0.78500835]
[1766733440534,0.00379621,2985.4,2984.8,0.79003397]
[1766733440734,6.439,2986.2,2984.8,0.79003397]
[1766733440937,1.7236309,2986.1,2984.8,0.79003397]
[1766733441234,0.78500835,2986.1,2984.8,0.79003397]
[1766733441635,0.7886552,2986.1,2984.8,0.79003397]
[1766733443036,0.7886552,2986.1,2984.8,0.00502562]
[1766733444041,0.93898799,2986.0,2984.8,0.00502562]
[1766733444339,0.17123685,2986.1,2984.8,0.00502562]
[1766733444641,0.78500835,2985.8,2984.8,0.00502562]
[1766733446540,0.78500835,2986.0,2984.8,0.00502562]
[1766733449138,0.93719118,2985.9,2984.8,0.00502562]
[1766733449339,0.78500835,2985.4,2984.8,0.00502562]
[1766733450343,0.78500835,2985.8,2984.8,0.00502562]
[1766733451039,0.95260835,2985.9,2984.8,0.00502562]
[1766733451239,0.93763874,2985.8,2984.8,0.00502562]
[1766733451440,0.95260835,2985.9,2984.8,0.00502562]
[1766733451640,0.93763803,2985.8,2984.8,0.00502562]
[1766733451840,0.1676,2985.9,2984.8,0.00502562]
[1766733452035,0.78500835,2985.7,2984.8,0.00502562]
[1766733458552,0.78500835,2985.8,2984.8,0.00502562]
[1766733460346,0.00500001,2985.6,2984.2,1.46232365]
[1766733460553,0.93803254,2985.5,2984.2,1.46232365]
[1766733461146,0.93803254,2985.5,2984.1,0.78892936]
[1766733461346,0.93803254,2985.5,2984.5,0.00502562]
[1766733463151,0.00500001,2985.6,2984.5,0.00502562]
[1766733464848,0.00500001,2985.6,2985.0,0.78500835]
[1766733465043,0.00500001,2985.6,2984.7,0.78500835]
[1766733465447,1e-08,2985.6,2985.0,0.78500835]
[1766733465646,0.00364685,2986.1,2985.0,0.78500835]
[1766733468450,0.00364685,2986.1,2984.7,0.78500835]
[1766733473260,0.00364685,2986.1,2984.5,0.79003397]
[1766733473261,0.78500835,2986.0,2984.5,0.79003397]
[1766733473456,0.7886552,2986.1,2984.5,0.79003397]
[1766733473964,0.78500835,2985.8,2984.5,0.00502562]
[1766733474552,0.00364685,2986.1,2984.5,0.00502562]
[1766733474553,0.7886552,2986.1,2984.5,0.00502562]
[1766733475654,0.00364685,2986.1,2984.7,0.78500835]
[1766733476060,0.00364685,2986.1,2984.5,0.00502562]
[1766733486569,0.17123685,2986.1,2984.5,0.00502562]
[1766733487264,0.00364685,2986.1,2984.5,0.00502562]
[1766733487466,0.16761,2985.8,2984.5,0.00502562]
[1766733487972,0.78416852,2985.9,2984.5,0.00502562]
[1766733487973,0.16762,2985.6,2984.5,0.00502562]
[1766733489363,0.16762,2985.6,2984.5,2.562e-05]
[1766733489566,0.93589554,2985.5,2984.5,2.562e-05]
[1766733489765,0.16762,2985.6,2984.5,2.562e-05]
[1766733489971,0.16762,2985.6,2983.3,0.26991671]
[1766733489972,0.78416852,2985.1,2983.2,1.4558498]
[1766733490172,0.93598357,2985.0,2983.2,1.4558498]
[1766733490364,0.78416852,2985.1,2983.0,0.16776]
[1766733490564,0.93536004,2985.0,2983.0,0.16776]
[1766733490766,6.392,2985.5,2983.6,0.78416852]
[1766733490767,6.392,2985.4,2983.6,0.78416852]
[1766733491072,0.93529345,2985.3,2983.7,0.00502562]
[1766733491264,0.16764,2985.3,2983.7,0.00502562]
[1766733491464,6.392,2985.4,2983.7,0.00502562]
[1766733491465,0.78416852,2985.2,2983.7,0.00502562]
[1766733492467,0.95180852,2985.2,2983.7,0.00502562]
[1766733494970,0.16767,2984.8,2983.7,0.00502562]
[1766733497573,6.55963,2985.4,2983.7,0.78919414]
[1766733497775,6.55963,2985.4,2983.7,0.00502562]
[1766733497776,0.16764,2985.3,2983.7,0.00502562]
[1766733497972,0.50214,2985.3,2983.7,0.00502562]
[1766733499272,6.384,2985.2,2983.7,0.00502562]
[1766733504979,6.384,2985.2,2983.7,0.78919414]
[1766733507090,0.3345,2985.3,2983.7,0.95691414]
[1766733508984,0.3345,2985.3,2983.7,0.17274562]
[1766733518496,0.50213,2985.3,2983.7,0.00502562]
[1766733521001,0.93986708,2985.2,2983.7,0.00502562]
[1766733521299,0.93986708,2985.1,2983.7,0.00502562]
[1766733521494,0.50213,2985.3,2983.7,0.00502562]
[1766733521693,0.93987888,2985.2,2983.7,0.00502562]
[1766733521891,0.50213,2985.3,2983.7,0.00502562]
[1766733522086,0.93985874,2985.2,2983.7,0.00502562]
[1766733522394,0.16763,2985.3,2983.7,0.00502562]
[1766733522696,0.9398622,2985.2,2983.7,0.00502562]
[1766733523000,0.16763,2985.3,2983.7,0.00502562]
[1766733523198,0.93986444,2985.2,2983.7,0.00502562]
[1766733523403,0.16763,2985.3,2983.7,0.00502562]
[1766733523586,0.93986865,2985.2,2983.7,0.00502562]
[1766733523786,0.16763,2985.3,2983.7,0.00502562]
[1766733525705,0.3345,2985.2,2983.7,0.00502562]
[1766733534407,0.94078707,2985.1,2983.7,0.00502562]
[1766733534607,0.3345,2985.2,2983.7,0.00502562]
[1766733534804,0.94081488,2985.1,2983.7,0.00502562]
[1766733535008,0.3345,2985.2,2983.7,0.00502562]
[1766733535210,0.94081459,2985.1,2983.7,0.00502562]
[1766733535413,0.3345,2985.2,2983.7,0.00502562]
[1766733535614,0.3345,2985.2,2983.7,0.78919414]
[1766733536016,0.3345,2985.2,2983.7,0.95691414]
[1766733537917,0.3345,2985.2,2984.1,0.78451913]
[1766733539318,0.3345,2985.2,2983.7,0.17274562]
[1766733539615,0.3345,2985.2,2984.0,0.78451913]
[1766733540907,0.3345,2985.2,2984.6,0.78451913]
[1766733541106,0.16759,2986.2,2984.8,0.78451913]
[1766733541310,0.940773,2986.0,2984.8,0.78451913]
[1766733541511,0.78451913,2986.0,2984.5,0.78451913]
[1766733542005,0.78451913,2985.7,2984.1,0.95221913]
[1766733542209,0.78451913,2985.4,2984.1,0.78451913]
[1766733542408,0.78451913,2985.4,2983.9,0.78451913]
[1766733542918,0.78451913,2985.7,2984.2,0.78451913]
[1766733543106,0.94060329,2985.6,2984.2,0.78451913]
[1766733543312,0.94060329,2985.5,2984.2,0.78451913]
[1766733543506,0.78451913,2985.7,2984.2,0.78451913]
[1766733543711,0.94063271,2985.6,2984.2,0.78451913]
[1766733543916,0.94063271,2985.5,2984.2,0.78451913]
[1766733544116,0.78451913,2985.7,2984.2,0.78451913]
[1766733544316,0.94064637,2985.6,2984.2,0.78451913]
[1766733544525,0.94064637,2985.5,2984.2,0.78451913]
[1766733544715,0.78451913,2985.7,2984.2,0.78451913]
[1766733545021,0.94061757,2985.6,2984.2,0.78451913]
[1766733545223,0.94061757,2985.5,2984.2,0.78451913]
[1766733545431,0.78451913,2985.7,2984.2,0.78451913]
[1766733545623,0.94060385,2985.6,2984.2,0.78451913]
[1766733545925,0.94060385,2985.5,2984.2,0.78451913]
[1766733546115,0.78451913,2985.7,2984.2,0.78451913]
[1766733546316,0.94061874,2985.6,2984.2,0.78451913]
[1766733546516,0.94061874,2985.5,2984.2,0.78451913]
[1766733546716,0.78451913,2985.4,2983.7,1.48154914]
[1766733546917,0.78451913,2985.4,2983.9,0.78451913]
[1766733547317,0.78451913,2985.7,2984.2,0.78451913]
[1766733547517,0.9406093,2985.6,2984.2,0.78451913]
[1766733547717,0.78451913,2985.4,2984.2,0.78451913]
[1766733547930,0.78451913,2985.4,2983.7,1.48154914]
[1766733547931,0.78451913,2985.4,2983.9,0.78451913]
[1766733549229,0.16762,2985.6,2984.2,0.78451913]
[1766733549531,0.94064862,2985.5,2984.2,0.78451913]
[1766733549722,0.94064862,2985.4,2984.2,0.78451913]
[1766733550026,0.16762,2985.6,2984.2,0.78451913]
[1766733550230,0.94067996,2985.5,2984.2,0.78451913]
[1766733550524,0.94067996,2985.4,2984.2,0.78451913]
[1766733550725,0.16762,2985.6,2984.2,0.78451913]
[1766733550926,0.94067754,2985.5,2984.2,0.78451913]
[1766733551120,0.94067754,2985.4,2984.2,0.78451913]
[1766733551315,0.16762,2985.6,2984.2,0.78451913]
[1766733551621,0.94078125,2985.5,2984.2,0.78451913]
[1766733551933,0.94078125,2985.4,2984.2,0.78451913]
[1766733552226,0.16762,2985.6,2984.2,0.78451913]
[1766733552424,0.94088881,2985.5,2984.2,0.78451913]
[1766733552620,0.94088881,2985.4,2984.2,0.78451913]
[1766733552814,0.78451913,2985.4,2983.9,0.78451913]
[1766733553017,0.16762,2985.6,2983.9,0.78451913]
[1766733553231,1.72540906,2985.5,2983.9,0.78451913]
[1766733553424,0.94088993,2985.4,2983.9,0.78451913]
[1766733554730,0.94088993,2985.4,2984.2,0.78451913]
[1766733561533,0.94088993,2985.4,2984.0,0.78451913]
[1766733562031,0.94088993,2985.4,2983.9,0.78451913]
[1766733565235,0.16764,2985.3,2983.9,0.78451913]
[1766733565442,0.78451913,2985.1,2983.7,0.78954475]
[1766733566339,0.16764,2985.3,2983.7,0.78954475]
[1766733572144,0.94294903,2985.2,2983.7,0.78954475]
[1766733572344,0.16764,2985.3,2983.7,0.78954475]
[1766733572545,0.94294968,2985.2,2983.7,0.78954475]
[1766733572740,0.16764,2985.3,2983.7,0.78954475]
[1766733572940,0.94294672,2985.2,2983.7,0.78954475]
[1766733573139,0.16764,2985.3,2983.7,0.78954475]
[1766733573336,0.94295488,2985.2,2983.7,0.78954475]
[1766733573532,0.16764,2985.3,2983.7,0.78954475]
[1766733573739,0.94295185,2985.2,2983.7,0.78954475]
[1766733573942,0.16764,2985.3,2983.7,0.78954475]
[1766733574142,0.94295185,2985.2,2983.7,0.78954475]
[1766733574345,0.16764,2985.3,2983.7,0.78954475]
[1766733574538,0.94296699,2985.2,2983.7,0.78954475]
[1766733574738,0.16764,2985.3,2983.7,0.78954475]
[1766733574938,0.94296395,2985.2,2983.7,0.78954475]
[1766733575140,0.16764,2985.3,2983.7,0.78954475]
[1766733575347,0.94298281,2985.2,2984.0,0.78451913]
[1766733575551,0.16764,2985.3,2983.9,0.78451913]
[1766733575752,0.16761,2985.8,2984.6,0.78451913]
[1766733576047,0.16761,2985.8,2984.7,0.78451913]
[1766733581953,0.16761,2985.8,2984.4,0.78451913]
[1766733585744,0.16761,2985.8,2984.5,0.78451913]
[1766733591358,0.16761,2985.8,2984.0,0.16771]
[1766733591657,0.16761,2985.8,2984.4,0.78451913]
[1766733593154,0.16761,2985.8,2984.0,0.16771]
[1766733593359,0.78451913,2985.4,2984.0,2.43395771]
[1766733593855,0.78451913,2985.7,2984.0,2.43395771]
[1766733594161,0.95212913,2985.8,2984.3,0.78451913]
[1766733596860,0.16761,2985.8,2984.6,0.78451913]
[1766733597060,0.95212913,2985.8,2984.3,0.78451913]
[1766733597952,0.16761,2985.8,2984.0,0.16771]
[1766733601265,0.16761,2985.8,2984.1,0.1677]
[1766733601556,0.16761,2985.8,2984.2,0.78444887]
[1766733603962,0.16761,2985.8,2984.1,0.95214887]
[1766733605164,0.94034246,2985.7,2984.1,0.95214887]
[1766733605352,0.00364685,2986.1,2983.7,0.00502562]
[1766733605667,0.16762,2985.5,2983.7,0.00502562]
[1766733605866,0.94035692,2985.4,2983.7,0.00502562]
[1766733606362,0.16762,2985.5,2983.7,0.00502562]
[1766733606568,0.94018205,2985.4,2983.7,0.00502562]
[1766733606759,0.78444887,2985.6,2983.7,0.00502562]
[1766733606961,0.16765,2985.0,2983.7,0.00502562]
[1766733607266,0.16766,2984.9,2983.7,0.00502562]
[1766733608165,0.16767,2984.6,2982.4,2.26055007]
[1766733608370,0.16768,2984.5,2982.4,2.26055007]
[1766733608562,0.16768,2984.4,2982.4,2.26076641]
[1766733609272,0.00502562,2983.7,2983.1,0.00502562]
[1766733609469,0.00837947,2983.7,2983.1,0.00502562]
[1766733609870,0.16765,2985.1,2983.2,0.78444887]
[1766733610168,2.78283454,2985.0,2983.2,0.78444887]
[1766733610367,0.93783454,2984.9,2983.2,0.78444887]
[1766733610568,1.845,2985.0,2983.2,0.78444887]
[1766733610781,0.93731967,2984.9,2983.2,0.78444887]
[1766733610971,1.84753413,2985.0,2983.2,0.78444887]
[1766733612676,2.01518413,2985.0,2983.1,0.00502562]
[1766733615771,0.16766,2984.9,2983.1,0.00502562]
[1766733617166,0.16766,2984.8,2983.1,0.00502562]
[1766733624179,2.631983,2985.0,2983.1,0.00502562]
[1766733624679,0.16767,2984.6,2983.1,0.00502562]
[1766733632883,0.16769,2984.4,2983.1,0.00502562]
[1766733633087,0.16769,2984.3,2983.1,0.00502562]
[1766733633684,0.1677,2984.2,2983.1,0.00502562]
[1766733633888,0.1677,2984.2,2982.4,1.47944604]
[1766733634990,0.00502562,2983.6,2983.0,0.00502562]
[1766733637587,0.00502562,2983.6,2982.4,1.47944604]
[1766733638483,0.00502562,2983.6,2982.7,0.00502562]
[1766733639883,0.00502562,2983.6,2982.7,2.562e-05]
[1766733640281,0.17275562,2983.6,2982.7,2.562e-05]
[1766733640591,0.16775,2983.2,2981.4,0.5]
[1766733640791,0.16776,2983.1,2981.4,0.5]
[1766733641591,0.16776,2983.1,2981.4,0.50314143]
[1766733641790,0.16776,2983.1,2982.0,0.00502562]
[1766733643787,0.16777,2982.9,2981.4,0.50314143]
[1766733643979,0.17116136,2982.9,2981.4,0.50314143]
[1766733644697,0.17116136,2982.9,2981.9,0.00502562]
[1766733644886,0.17116136,2982.9,2981.4,0.50314143]
[1766733645888,0.17116136,2982.9,2981.9,0.00502562]
[1766733647987,0.17116136,2982.9,2981.4,0.50314143]
[1766733649000,0.17116136,2982.9,2981.4,0.00314143]
[1766733649203,0.17116136,2982.9,2981.9,0.00332486]
[1766733651093,0.78444887,2982.7,2981.9,0.00332486]
[1766733651297,0.16779,2982.6,2981.4,0.00314143]
[1766733660507,0.16779,2982.6,2981.5,0.78603086]
[1766733660710,6.22139136,2982.9,2981.7,0.78603086]
[1766733661406,6.22139136,2982.9,2982.0,0.78603086]
[1766733661709,6.22139136,2982.9,2981.6,0.78603086]
[1766733663802,6.22139136,2982.9,2981.9,0.78603086]
[1766733672003,6.22139136,2982.9,2981.6,0.78603086]
[1766733674914,6.22139136,2982.9,2981.9,0.78603086]
[1766733676010,6.22139136,2982.9,2982.2,0.78603086]
[1766733676212,6.207,2983.5,2982.5,0.78603086]
[1766733677217,0.0023882,2983.5,2982.5,0.78603086]
[1766733678808,0.0023882,2983.5,2982.2,0.78603086]
[1766733681115,0.0023882,2983.5,2982.7,0.78603086]
[1766733681318,6.21202562,2983.6,2982.7,0.78603086]
[1766733682016,6.21202562,2983.6,2982.2,0.78603086]
[1766733682218,6.2152446,2983.6,2982.2,0.78603086]
[1766733686722,6.2152446,2983.6,2982.5,0.78603086]
[1766733687222,6.2152446,2983.6,2982.2,0.78603086]
[1766733689218,6.2152446,2983.6,2982.5,0.78603086]
[1766733689721,6.2152446,2983.6,2982.2,0.78603086]
[1766733690524,6.2152446,2983.6,2982.0,0.16782]
[1766733690824,6.2152446,2983.6,2982.4,0.78603086]
[1766733702837,6.2152446,2983.6,2982.3,0.78603086]
[1766733711436,6.2152446,2983.6,2982.1,0.16781]
[1766733711437,0.0082446,2983.6,2983.0,0.78603086]
[1766733711633,0.08366483,2983.9,2983.0,0.78603086]
[1766733711833,0.08366483,2983.9,2982.8,0.78603086]
[1766733712626,0.00502562,2983.6,2983.1,0.00502561]
[1766733714838,0.95368086,2984.7,2983.2,0.78603086]
[1766733715038,0.78603086,2984.5,2983.2,0.78603086]
[1766733715338,0.94176428,2984.4,2983.2,0.78603086]
[1766733715542,0.94176428,2984.4,2983.1,0.00502561]
[1766733715737,0.94176428,2984.4,2983.1,0.79105647]
[1766733715940,0.00502562,2984.0,2983.1,0.79105647]
[1766733718342,0.00502562,2984.0,2983.1,0.00502561]
[1766733718744,0.00502562,2984.0,2983.1,0.79105647]
[1766733719829,0.00502562,2984.0,2983.3,0.78603086]
[1766733720034,0.00392678,2984.4,2983.1,0.00502561]
[1766733720737,0.00392678,2984.4,2983.3,0.78486952]
[1766733721148,6.169,2985.2,2983.7,0.78486952]
[1766733721444,6.168,2985.9,2983.7,0.78486952]
[1766733722040,0.00502562,2984.9,2983.7,0.78840792]
[1766733722442,0.00502562,2984.9,2983.7,0.0035384]
[1766733748756,7.07743642,2984.8,2983.1,0.00502561]